bitfinex-derivatives/quotes_BTCF0:USTF0_20241103
["timestamp","ask_amount","ask_price","bid_price","bid_amount"]
[1730658653055,0.073285,68250.0,68249.0,0.03336088]
[1730658653258,0.072285,68250.0,68249.0,0.03136088]
[1730658653460,0.074285,68250.0,68249.0,0.03336088]
[1730658654265,0.074285,68250.0,68249.0,0.1280449]
[1730658656358,0.073285,68250.0,68249.0,0.24119989]
[1730658656559,0.074285,68250.0,68249.0,0.24119989]
[1730658658765,0.072285,68250.0,68249.0,0.23919989]
[1730658658966,0.074285,68250.0,68249.0,0.24119989]
[1730658659367,0.073285,68250.0,68249.0,0.23919989]
[1730658659665,0.074285,68250.0,68249.0,0.24119989]
[1730658660667,0.074285,68250.0,68249.0,0.24175925]
[1730658660962,0.074285,68250.0,68249.0,0.12843479]
[1730658661365,0.074285,68250.0,68249.0,0.03336088]
[1730658662368,0.002,68250.0,68249.0,0.46744688]
[1730658662568,0.002,68250.0,68249.0,0.10664688]
[1730658663567,0.002,68250.0,68249.0,0.54620688]
[1730658663770,0.073273,68262.0,68249.0,0.54620688]
[1730658663968,0.073273,68262.0,68256.0,0.45935261]
[1730658664269,0.073273,68262.0,68258.0,0.073277]
[1730658664477,0.00219837,68266.0,68259.0,0.0636]
[1730658664660,0.073274,68260.0,68259.0,0.0636]
[1730658666170,0.073278,68257.0,68256.0,0.003]
[1730658666469,0.073285,68251.0,68249.0,0.03136088]
[1730658666766,0.073285,68251.0,68249.0,0.05387276]
[1730658666963,0.0318,68260.0,68249.0,0.05387276]
[1730658667363,0.073279,68256.0,68252.0,0.073282]
[1730658667675,0.001,68260.0,68252.0,0.073282]
[1730658668271,0.073279,68256.0,68255.0,0.3608]
[1730658668470,0.073279,68256.0,68255.0,0.45581179]
[1730658669659,0.074279,68256.0,68255.0,0.45681179]
[1730658670072,0.075279,68256.0,68255.0,0.45981179]
[1730658670275,0.074279,68256.0,68255.0,0.45881179]
[1730658670471,0.075279,68256.0,68255.0,0.09901179]
[1730658672770,0.17283161,68256.0,68255.0,0.09801179]
[1730658672971,0.17383161,68256.0,68255.0,0.09901179]
[1730658675686,0.61335161,68256.0,68255.0,0.09901179]
[1730658675881,0.073283,68252.0,68251.0,0.07320298]
[1730658676176,0.073284,68251.0,68250.0,0.07320298]
[1730658676382,0.17183761,68250.0,68249.0,0.03136088]
[1730658676581,0.61139761,68250.0,68249.0,0.03136088]
[1730658676888,0.073309,68228.0,68226.0,0.05887383]
[1730658677184,0.53266261,68227.0,68226.0,0.05887383]
[1730658677377,0.63626261,68227.0,68226.0,0.10273479]
[1730658677677,0.63626261,68227.0,68226.0,0.08050388]
[1730658678381,0.073314,68223.0,68222.0,0.04381164]
[1730658678680,0.073315,68222.0,68221.0,0.04381164]
[1730658678984,0.073315,68222.0,68211.0,0.031]
[1730658678985,0.53831261,68223.0,68219.0,0.04381164]
[1730658679176,0.53266961,68220.0,68219.0,0.04381164]
[1730658679379,0.073321,68217.0,68216.0,0.04381164]
[1730658679575,0.53266961,68220.0,68216.0,0.04376835]
[1730658679775,0.53266961,68220.0,68215.0,0.04376835]
[1730658679980,0.17187461,68216.0,68215.0,0.04376835]
[1730658680376,0.073324,68214.0,68213.0,0.04376835]
[1730658681181,0.073326,68212.0,68211.0,0.04376835]
[1730658681384,0.09855261,68212.0,68209.0,0.04376835]
[1730658681581,0.073328,68210.0,68209.0,0.04376835]
[1730658681887,0.073328,68210.0,68209.0,0.04370145]
[1730658682070,0.09855261,68212.0,68206.0,0.3608]
[1730658682380,0.17188361,68207.0,68206.0,0.3608]
[1730658683780,0.46035261,68207.0,68203.0,0.04370206]
[1730658683980,0.073335,68204.0,68201.0,0.13630206]
[1730658684374,0.46175262,68207.0,68201.0,0.0926]
[1730658684375,0.073336,68203.0,68201.0,0.0926]
[1730658684588,0.36316,68207.0,68201.0,0.0926]
[1730658684784,0.073335,68204.0,68201.0,0.0926]
[1730658686076,0.074335,68204.0,68201.0,0.0926]
[1730658686981,0.075335,68204.0,68201.0,0.0926]
[1730658688078,0.002,68204.0,68203.0,0.17188861]
[1730658688283,0.10364,68211.0,68206.0,0.073332]
[1730658688474,0.09855261,68219.0,68203.0,0.09855261]
[1730658688677,0.073326,68212.0,68207.0,0.073331]
[1730658690283,0.073328,68210.0,68207.0,0.073331]
[1730658691687,0.073328,68210.0,68209.0,0.001]
[1730658692682,0.074328,68210.0,68209.0,0.001]
[1730658693082,0.075328,68210.0,68209.0,0.001]
[1730658693476,0.075328,68210.0,68209.0,0.002]
[1730658693682,0.074328,68210.0,68209.0,0.002]
[1730658693880,0.075328,68210.0,68209.0,0.004]
[1730658694377,0.09855261,68231.0,68209.0,0.10255261]
[1730658694584,0.10616,68226.0,68209.0,0.10255261]
[1730658694784,0.09855261,68225.0,68209.0,0.004]
[1730658695588,0.00319979,68221.0,68209.0,0.004]
[1730658695893,0.073321,68218.0,68212.0,0.073326]
[1730658696602,0.073321,68218.0,68213.0,0.073325]
[1730658696781,0.073321,68218.0,68215.0,0.073322]
[1730658696977,0.00419979,68221.0,68216.0,0.135822]
[1730658697187,0.001,68218.0,68216.0,0.135822]
[1730658697587,0.073318,68220.0,68218.0,0.07332]
[1730658697783,0.00319979,68221.0,68219.0,0.073319]
[1730658697980,0.00219979,68221.0,68219.0,0.073319]
[1730658698492,0.07551679,68221.0,68219.0,0.073319]
[1730658698980,0.00319979,68221.0,68220.0,0.073317]
[1730658699684,0.00219979,68221.0,68220.0,0.073317]
[1730658699895,0.00319979,68221.0,68220.0,0.073317]
[1730658700190,0.00319979,68221.0,68220.0,0.076317]
[1730658700191,0.00419979,68221.0,68220.0,0.076317]
[1730658700585,0.00419979,68221.0,68220.0,0.108117]
[1730658701092,0.3608,68230.0,68220.0,0.0348]
[1730658701300,0.073305,68232.0,68227.0,0.07331]
[1730658701490,0.073305,68232.0,68228.0,0.073309]
[1730658701684,0.4341,68237.0,68231.0,0.073305]
[1730658701893,0.4341,68237.0,68224.0,0.40450206]
[1730658701894,0.46696,68237.0,68232.0,0.0621]
[1730658702085,0.073312,68225.0,68220.0,0.004]
[1730658702396,0.53266861,68221.0,68220.0,0.004]
[1730658702796,0.97242861,68221.0,68220.0,0.004]
[1730658702997,0.97242861,68221.0,68220.0,0.003]
[1730658703391,1.00527261,68221.0,68209.0,0.001]
[1730658703698,0.540276,68221.0,68220.0,0.004]
[1730658703882,0.540276,68221.0,68209.0,0.001]
[1730658703883,0.073328,68210.0,68209.0,0.001]
[1730658704700,0.073328,68210.0,68209.0,0.006]
[1730658705198,0.17188061,68210.0,68209.0,0.006]
[1730658705384,0.17288061,68210.0,68209.0,0.009]
[1730658706087,0.17188061,68210.0,68209.0,0.006]
[1730658706285,0.17388061,68210.0,68209.0,0.09936945]
[1730658707716,0.17288061,68210.0,68209.0,0.09636945]
[1730658707995,0.17388061,68210.0,68209.0,0.09836945]
[1730658708190,0.17288061,68210.0,68209.0,0.09836945]
[1730658708390,0.17388061,68210.0,68209.0,0.09836945]
[1730658708595,0.17288061,68210.0,68209.0,0.09636945]
[1730658708799,0.17388061,68210.0,68209.0,0.09836945]
[1730658709402,0.074328,68210.0,68209.0,0.09636945]
[1730658709699,0.075328,68210.0,68209.0,0.09836945]
[1730658710296,0.074328,68210.0,68209.0,0.09836945]
[1730658710491,0.075328,68210.0,68209.0,0.09836945]
[1730658711603,0.075328,68210.0,68209.0,0.09831171]
[1730658713700,0.075328,68210.0,68209.0,0.12123737]
[1730658716101,0.075328,68210.0,68209.0,0.02592566]
[1730658716307,0.075328,68210.0,68209.0,0.12123251]
[1730658718005,0.075328,68210.0,68209.0,0.09830685]
[1730658719511,0.002,68210.0,68209.0,0.17163585]
[1730658719811,0.002,68210.0,68209.0,0.53243585]
[1730658720009,0.002,68210.0,68209.0,0.64586808]
[1730658720512,0.001,68210.0,68209.0,0.64586808]
[1730658720696,0.001,68210.0,68209.0,0.57253908]
[1730658720697,0.002,68210.0,68209.0,0.57253908]
[1730658720900,0.075328,68210.0,68209.0,0.21173908]
[1730658722603,0.002,68210.0,68209.0,0.28506808]
[1730658723696,0.002,68210.0,68209.0,0.076329]
[1730658723897,0.075328,68210.0,68209.0,0.21175452]
[1730658724102,0.075328,68210.0,68209.0,0.09823639]
[1730658724710,0.074328,68210.0,68209.0,0.09623639]
[1730658724911,0.075328,68210.0,68209.0,0.09823639]
[1730658725316,0.515168,68210.0,68209.0,0.003]
[1730658725501,0.515168,68210.0,68205.0,0.07320552]
[1730658725703,0.515168,68210.0,68200.0,0.13399941]
[1730658725704,0.45935261,68206.0,68202.0,0.07320552]
[1730658726017,0.073337,68202.0,68200.0,0.17540493]
[1730658726205,0.27873061,68201.0,68200.0,0.10219941]
[1730658728408,0.27973061,68201.0,68200.0,0.10319941]
[1730658729119,0.28073061,68201.0,68200.0,0.10319941]
[1730658729819,0.72061061,68201.0,68200.0,0.101]
[1730658730119,0.72061061,68201.0,68200.0,0.15952838]
[1730658730312,0.72061061,68201.0,68200.0,0.101]
[1730658731215,1.47996322,68201.0,68193.0,0.02204323]
[1730658731427,0.073369,68172.0,68171.0,4.8e-07]
[1730658731715,1.00040161,68172.0,68171.0,4.8e-07]
[1730658731918,1.74048161,68172.0,68171.0,4.8e-07]
[1730658732221,0.073383,68160.0,68141.0,0.529402]
[1730658732419,0.073383,68160.0,68142.0,0.20476126]
[1730658732420,0.3608,68153.0,68142.0,0.20476126]
[1730658732620,0.3608,68153.0,68141.0,0.529402]
[1730658732621,0.3608,68153.0,68143.0,0.09341462]
[1730658732809,0.3608,68153.0,68141.0,0.529402]
[1730658732810,0.09855261,68148.0,68144.0,0.09341462]
[1730658733011,0.073397,68146.0,68145.0,0.09341462]
[1730658733213,0.09855261,68148.0,68141.0,0.00076]
[1730658733214,0.073401,68142.0,68141.0,0.00076]
[1730658733407,0.3608,68153.0,68140.0,0.3608]
[1730658733623,0.073404,68140.0,68139.0,0.09855261]
[1730658733819,0.073404,68140.0,68134.0,0.3608]
[1730658733820,0.073404,68140.0,68135.0,0.073409]
[1730658734121,0.073405,68139.0,68138.0,0.0219299]
[1730658734722,0.09855261,68148.0,68134.0,0.38303124]
[1730658735017,0.3608,68146.0,68134.0,0.38303124]
[1730658735507,0.3618,68153.0,68144.0,0.09855261]
[1730658735708,0.073391,68152.0,68144.0,0.09855261]
[1730658735908,0.001,68153.0,68150.0,0.09855261]
[1730658736220,0.07338,68162.0,68152.0,0.3608]
[1730658736416,0.073381,68161.0,68156.0,0.09855261]
[1730658736612,0.073381,68161.0,68154.0,0.073388]
[1730658736613,0.10692,68164.0,68152.0,0.45935261]
[1730658736820,0.3630015,68165.0,68152.0,0.3608]
[1730658737913,0.001,68153.0,68152.0,0.3608]
[1730658738114,0.073379,68163.0,68152.0,0.3608]
[1730658738429,0.073379,68163.0,68159.0,0.3608]
[1730658738919,0.073381,68162.0,68159.0,0.3608]
[1730658739519,0.073382,68160.0,68159.0,0.3608]
[1730658740128,0.073382,68160.0,68159.0,0.3618]
[1730658741322,0.073382,68160.0,68159.0,0.3628]
[1730658741827,0.435182,68160.0,68159.0,0.003]
[1730658742122,0.875342,68160.0,68159.0,0.002]
[1730658742328,0.876342,68160.0,68159.0,0.003]
[1730658742830,0.436182,68160.0,68159.0,0.003]
[1730658743025,0.435182,68160.0,68159.0,0.002]
[1730658743325,0.436182,68160.0,68159.0,0.003]
[1730658743929,0.435182,68160.0,68159.0,0.003]
[1730658744424,0.875342,68160.0,68159.0,0.003]
[1730658744629,0.875342,68160.0,68143.0,0.033]
[1730658744630,0.073383,68159.0,68143.0,0.033]
[1730658744934,0.17195161,68144.0,68143.0,0.033]
[1730658746224,0.17295161,68144.0,68143.0,0.034]
[1730658746427,0.17395161,68144.0,68143.0,0.035]
[1730658747230,0.17395161,68144.0,68143.0,0.002]
[1730658748015,0.17395161,68144.0,68143.0,0.001]
[1730658748623,0.53375161,68144.0,68143.0,0.001]
[1730658748921,0.53475161,68144.0,68143.0,0.001]
[1730658749127,0.073409,68135.0,68134.0,0.0321]
[1730658749315,0.45935261,68135.0,68133.0,0.0326]
[1730658749520,0.07341,68134.0,68133.0,0.0326]
[1730658751818,0.07441,68134.0,68133.0,0.0326]
[1730658752227,0.073419,68126.0,68125.0,0.3608]
[1730658752829,0.073419,68126.0,68121.0,0.0303]
[1730658752830,0.073423,68122.0,68121.0,0.0303]
[1730658753027,0.17197561,68122.0,68121.0,0.0303]
[1730658753625,0.53277561,68122.0,68121.0,0.0303]
[1730658754032,0.97317561,68122.0,68121.0,0.0303]
[1730658754330,0.89975261,68122.0,68108.0,0.3608]
[1730658754531,0.09855261,68110.0,68109.0,0.0303]
[1730658754841,0.17198861,68110.0,68109.0,0.0303]
[1730658755142,0.073436,68110.0,68109.0,0.103737]
[1730658755837,0.074436,68110.0,68109.0,0.103737]
[1730658756138,0.002,68110.0,68109.0,0.0303]
[1730658756438,0.073433,68113.0,68109.0,0.0303]
[1730658756632,0.001,68110.0,68109.0,0.0303]
[1730658758037,0.073435,68112.0,68109.0,0.0313]
[1730658758533,0.001,68113.0,68112.0,0.073434]
[1730658758729,0.073429,68117.0,68112.0,0.073434]
[1730658758924,0.542944,68122.0,68114.0,0.3608]
[1730658759128,0.073424,68122.0,68114.0,0.3608]
[1730658759338,0.073424,68122.0,68118.0,0.073426]
[1730658760239,0.46079261,68129.0,68122.0,0.073423]
[1730658760240,0.00144,68129.0,68122.0,0.073423]
[1730658760542,0.073413,68132.0,68129.0,0.073415]
[1730658760730,0.3608,68135.0,68129.0,0.073415]
[1730658760925,0.3608,68135.0,68121.0,0.45935261]
[1730658760926,0.073408,68137.0,68133.0,0.073411]
[1730658761137,0.073409,68135.0,68131.0,0.3608]
[1730658761338,0.10075477,68140.0,68131.0,0.3608]
[1730658761533,0.07341,68134.0,68131.0,0.3608]
[1730658762244,0.01,68135.0,68134.0,0.07341]
[1730658762440,0.01620216,68140.0,68131.0,0.3608]
[1730658762642,0.01620216,68140.0,68137.0,0.073406]
[1730658762939,0.01620216,68140.0,68139.0,0.073405]
[1730658762940,0.00220216,68140.0,68139.0,0.073405]
[1730658763841,0.10872,68151.0,68138.0,0.0934]
[1730658764044,0.073394,68149.0,68143.0,0.0734]
[1730658764244,0.073394,68149.0,68146.0,0.073397]
[1730658764434,0.10872,68156.0,68143.0,0.3608]
[1730658764632,0.073394,68149.0,68143.0,0.4342]
[1730658765237,0.074394,68149.0,68143.0,0.4352]
[1730658765446,0.075394,68149.0,68143.0,0.4352]
[1730658765836,0.074394,68149.0,68143.0,0.4352]
[1730658766032,0.075394,68149.0,68143.0,0.4352]
[1730658766948,0.073398,68145.0,68143.0,0.38047221]
[1730658767239,0.073398,68145.0,68143.0,0.01967221]
[1730658768041,0.09855261,68144.0,68138.0,0.0934]
[1730658768240,0.073405,68139.0,68138.0,0.0934]
[1730658769249,0.073405,68139.0,68138.0,0.0944]
[1730658769447,0.074405,68139.0,68138.0,0.0944]
[1730658769651,0.17295761,68139.0,68138.0,0.0316]
[1730658769952,0.17195761,68139.0,68138.0,0.0316]
[1730658770133,0.17295761,68139.0,68138.0,0.0316]
[1730658770538,0.17295761,68139.0,68138.0,0.001]
[1730658770738,0.073413,68131.0,68125.0,0.0325]
[1730658770940,0.073413,68131.0,68126.0,0.073418]
[1730658771142,0.073413,68131.0,68125.0,0.0325]
[1730658771351,0.073419,68126.0,68125.0,0.0325]
[1730658773357,0.074419,68126.0,68125.0,0.0325]
[1730658774054,0.075419,68126.0,68125.0,0.0335]
[1730658774641,0.074419,68126.0,68125.0,0.0325]
[1730658774844,0.075419,68126.0,68125.0,0.0335]
[1730658775049,0.515779,68126.0,68125.0,0.001]
[1730658775554,0.514779,68126.0,68125.0,0.001]
[1730658775750,0.514779,68126.0,68112.0,0.033]
[1730658775751,0.073433,68113.0,68112.0,0.033]
[1730658776346,0.53278561,68113.0,68112.0,0.033]
[1730658776849,0.073436,68110.0,68109.0,0.001]
[1730658778453,0.074436,68110.0,68109.0,0.002]
[1730658778649,0.075436,68110.0,68109.0,0.002]
[1730658779558,0.184156,68110.0,68109.0,0.002]
[1730658780247,0.075436,68110.0,68109.0,0.002]
[1730658780648,0.075436,68110.0,68109.0,0.0631]
[1730658780853,0.074436,68110.0,68109.0,0.0631]
[1730658781354,0.073436,68110.0,68109.0,0.0631]
[1730658781542,0.10872,68118.0,68109.0,0.0631]
[1730658781942,0.073436,68110.0,68109.0,0.0631]
[1730658782145,0.074436,68110.0,68109.0,0.0621]
[1730658782350,0.075436,68110.0,68109.0,0.0631]
[1730658782645,0.001,68110.0,68109.0,0.0631]
[1730658782845,0.074427,68118.0,68110.0,0.073435]
[1730658783149,0.07343,68116.0,68111.0,0.073434]
[1730658783454,0.434225,68121.0,68112.0,0.073433]
[1730658783658,0.073427,68119.0,68112.0,0.073433]
[1730658783840,0.3608,68121.0,68115.0,0.3608]
[1730658784155,0.3608,68121.0,68117.0,0.073428]
[1730658784544,0.00220278,68124.0,68118.0,0.0327]
[1730658784749,0.00220278,68124.0,68121.0,0.3608]
[1730658785054,0.00220278,68124.0,68121.0,0.434224]
[1730658785554,0.00220278,68124.0,68123.0,0.073422]
[1730658786146,0.00320278,68124.0,68123.0,0.073422]
[1730658787649,0.00320278,68124.0,68123.0,0.513782]
[1730658787650,0.001,68124.0,68123.0,0.513782]
[1730658787851,0.09855261,68141.0,68123.0,0.44036]
[1730658787852,0.073412,68132.0,68123.0,0.44036]
[1730658788162,0.073412,68132.0,68127.0,0.434218]
[1730658788347,0.073412,68132.0,68128.0,0.0308]
[1730658788547,0.073408,68136.0,68129.0,0.073414]
[1730658789249,0.001,68132.0,68129.0,0.073414]
[1730658790252,0.001,68132.0,68131.0,0.3608]
[1730658790762,0.001,68132.0,68131.0,0.434213]
[1730658791062,0.09855261,68141.0,68133.0,0.073411]
[1730658791063,0.073404,68141.0,68133.0,0.073411]
[1730658791259,0.3608,68144.0,68135.0,0.17196161]
[1730658791260,0.001,68136.0,68135.0,0.17196161]
[1730658791555,0.001,68136.0,68135.0,0.23038488]
[1730658791757,0.001,68136.0,68135.0,0.513689]
[1730658792064,0.3608,68144.0,68135.0,0.49869741]
[1730658792251,0.073402,68142.0,68136.0,0.073408]
[1730658792562,0.00220214,68146.0,68140.0,0.073403]
[1730658793165,0.00220214,68146.0,68141.0,0.073402]
[1730658793664,0.00220214,68146.0,68142.0,0.073401]
[1730658794250,0.07559914,68146.0,68141.0,0.05841741]
[1730658794445,0.073398,68145.0,68141.0,0.05841741]
[1730658795153,0.001,68142.0,68141.0,0.05841741]
[1730658795360,0.001,68142.0,68141.0,0.13181941]
[1730658795949,0.001,68142.0,68141.0,0.13281941]
[1730658796145,0.001,68142.0,68141.0,0.074402]
[1730658796362,0.00220214,68146.0,68142.0,0.0734]
[1730658796660,0.00220214,68146.0,68142.0,0.13180918]
[1730658798559,0.00220214,68146.0,68145.0,0.434198]
[1730658798856,0.00220214,68146.0,68145.0,0.93284718]
[1730658799853,0.00420214,68146.0,68145.0,0.93284718]
[1730658800057,0.00420214,68146.0,68145.0,0.434198]
[1730658800562,0.00420214,68146.0,68145.0,0.467298]
[1730658800855,0.00720214,68146.0,68145.0,0.467298]
[1730658802759,0.00720214,68146.0,68145.0,0.907538]
[1730658804058,0.01866915,68167.0,68152.0,0.07339]
[1730658804254,0.073376,68166.0,68158.0,0.434183]
[1730658804457,0.073378,68164.0,68158.0,0.434183]
[1730658804660,0.073378,68164.0,68159.0,0.073383]
[1730658805059,0.073378,68164.0,68161.0,0.07338]
[1730658805658,0.002,68166.0,68158.0,0.3608]
[1730658805857,0.07338,68162.0,68158.0,0.434184]
[1730658806257,0.07338,68162.0,68159.0,0.073383]
[1730658806864,0.003,68164.0,68159.0,0.073383]
[1730658807060,0.006,68164.0,68159.0,0.073383]
[1730658807457,0.003,68164.0,68159.0,0.073383]
[1730658807664,0.008,68164.0,68159.0,0.073383]
[1730658808060,0.073377,68165.0,68160.0,0.073382]
[1730658808061,0.003,68162.0,68160.0,0.073382]
[1730658808258,0.003,68162.0,68161.0,0.0307]
[1730658808865,0.006,68164.0,68161.0,0.0307]
[1730658809167,0.003,68164.0,68161.0,0.0307]
[1730658809474,0.004,68162.0,68161.0,0.0307]
[1730658810361,0.009,68162.0,68161.0,0.0307]
[1730658810672,0.005,68162.0,68161.0,0.0307]
[1730658810970,0.005,68162.0,68161.0,0.104081]
[1730658810971,0.01,68162.0,68161.0,0.104081]
[1730658812460,0.01,68162.0,68158.0,0.3608]
[1730658812665,0.073383,68159.0,68158.0,0.3608]
[1730658813067,0.073383,68159.0,68158.0,0.38015011]
[1730658813568,0.073384,68158.0,68149.0,0.36168]
[1730658813776,0.073391,68152.0,68149.0,0.3608]
[1730658813962,0.073392,68151.0,68149.0,0.3608]
[1730658814368,0.073392,68151.0,68149.0,0.37944764]
[1730658814572,0.073393,68150.0,68149.0,0.37944764]
[1730658815669,0.073393,68150.0,68149.0,0.3638]
[1730658816769,0.073393,68150.0,68149.0,0.3678]
[1730658817563,0.074393,68150.0,68149.0,0.3678]
[1730658817776,0.075393,68150.0,68149.0,0.3678]
[1730658822380,0.075393,68150.0,68149.0,0.44068494]
[1730658823269,0.075393,68150.0,68149.0,0.53383064]
[1730658823473,0.002,68150.0,68149.0,0.4609457]
[1730658823681,0.002,68150.0,68149.0,0.5343397]
[1730658823871,0.002,68150.0,68149.0,0.64505453]
[1730658824473,0.073389,68154.0,68149.0,0.64505453]
[1730658824668,0.073389,68154.0,68151.0,0.0879106]
[1730658824870,0.073389,68154.0,68152.0,0.0931457]
[1730658825078,0.073389,68154.0,68153.0,0.0931457]
[1730658826380,0.074389,68154.0,68153.0,0.0931457]
[1730658826581,0.11421455,68154.0,68151.0,0.073391]
[1730658826772,0.075389,68154.0,68151.0,0.004]
[1730658827267,0.074389,68154.0,68153.0,0.10255261]
[1730658827567,0.002,68154.0,68153.0,0.27849522]
[1730658827768,0.002,68154.0,68153.0,0.62014261]
[1730658827969,0.001,68154.0,68153.0,0.53875261]
[1730658828169,0.002,68154.0,68153.0,0.61214261]
[1730658828987,0.002,68154.0,68153.0,0.17194261]
[1730658829689,0.002,68154.0,68153.0,0.18294261]
[1730658830076,0.001,68154.0,68153.0,0.18294261]
[1730658830276,0.002,68154.0,68153.0,0.18694261]
[1730658831686,0.002,68154.0,68153.0,0.54774261]
[1730658832272,0.002,68154.0,68153.0,0.3758]
[1730658833679,0.002,68154.0,68153.0,0.57825884]
[1730658833990,0.075388,68154.0,68153.0,0.57825884]
[1730658834895,0.002,68154.0,68153.0,0.75020145]
[1730658835780,0.002,68154.0,68153.0,0.64005584]
[1730658836888,0.002,68154.0,68153.0,0.75015216]
[1730658837188,0.002,68154.0,68153.0,0.64005584]
[1730658837387,0.002,68154.0,68153.0,0.54774261]
[1730658837588,0.002,68154.0,68153.0,0.64010702]
[1730658838485,0.002,68154.0,68153.0,0.56671702]
[1730658838685,0.075388,68154.0,68153.0,0.56671702]
[1730658839489,0.075388,68154.0,68153.0,0.6768111]
[1730658840397,0.002,68154.0,68153.0,0.7502011]
[1730658841683,0.002,68154.0,68153.0,0.54774261]
[1730658843203,0.002,68154.0,68153.0,1.08649522]
[1730658843497,0.434175,68167.0,68166.0,0.09855261]
[1730658844382,0.47438136,68167.0,68166.0,0.09855261]
[1730658844796,0.47438136,68167.0,68166.0,0.09955261]
[1730658844994,0.434175,68167.0,68166.0,0.001]
[1730658845790,0.073375,68167.0,68166.0,0.003]
[1730658845992,0.073364,68177.0,68166.0,0.10155261]
[1730658846294,0.07337,68171.0,68167.0,0.073374]
[1730658846495,0.07337,68171.0,68167.0,0.105474]
[1730658847404,0.073372,68170.0,68167.0,0.105474]
[1730658847697,0.073372,68169.0,68167.0,0.0321]
[1730658848086,0.073372,68169.0,68167.0,0.0341]
[1730658848687,0.073372,68169.0,68168.0,0.16515898]
[1730658849699,0.073372,68169.0,68168.0,0.1651608]
[1730658849888,0.3608,68181.0,68169.0,0.073372]
[1730658850089,0.073364,68177.0,68176.0,0.04392934]
[1730658850391,0.073364,68177.0,68176.0,0.05857246]
[1730658850591,0.073364,68177.0,68172.0,0.14658458]
[1730658850592,0.073365,68176.0,68172.0,0.14658458]
[1730658851197,0.073367,68175.0,68172.0,0.14658458]
[1730658852390,0.073367,68175.0,68173.0,0.07321558]
[1730658853207,0.073367,68174.0,68173.0,0.07321558]
[1730658853507,0.073367,68174.0,68173.0,0.16496705]
[1730658853704,0.073367,68174.0,68173.0,0.16596705]
[1730658854400,0.073367,68174.0,68173.0,0.16496705]
[1730658854596,0.079367,68174.0,68173.0,0.16596705]
[1730658854806,0.006,68174.0,68173.0,0.16596705]
[1730658855107,0.006,68174.0,68173.0,0.23933505]
[1730658855504,0.006,68174.0,68173.0,0.16596705]
[1730658856317,0.006,68174.0,68173.0,0.16596972]
[1730658856498,0.006,68174.0,68173.0,0.23933772]
[1730658856804,0.25990089,68174.0,68171.0,0.3608]
[1730658857106,0.17159615,68174.0,68173.0,0.09855261]
[1730658857311,0.25990154,68174.0,68173.0,0.09855261]
[1730658857508,0.25990154,68174.0,68173.0,0.17192061]
[1730658857702,0.21245847,68174.0,68173.0,0.17192061]
[1730658857894,0.15332921,68174.0,68173.0,0.17192061]
[1730658858098,0.15132921,68174.0,68173.0,0.17192061]
[1730658858403,0.073368,68173.0,68171.0,0.3800268]
[1730658858605,0.14232921,68172.0,68171.0,0.3800268]
[1730658858807,0.21196633,68172.0,68171.0,0.3800268]
[1730658859709,0.21196633,68172.0,68171.0,0.3810268]
[1730658863301,0.21910092,68172.0,68171.0,0.3810268]
[1730658863494,0.21188239,68172.0,68171.0,0.3810268]
[1730658864001,0.073369,68172.0,68171.0,0.47363811]
[1730658865811,0.073364,68177.0,68171.0,0.47363811]
[1730658866007,0.073365,68176.0,68175.0,0.07321353]
[1730658866402,0.073365,68176.0,68175.0,0.16584327]
[1730658867310,0.076365,68176.0,68175.0,0.09262974]
[1730658867822,0.080365,68176.0,68175.0,0.09262974]
[1730658871914,0.17189961,68193.0,68175.0,0.09262974]
[1730658871915,0.12274966,68203.0,68189.0,0.07335]
[1730658872099,0.12274966,68203.0,68175.0,1.91184321]
[1730658872100,0.0470608,68202.0,68201.0,0.073338]
[1730658872436,0.3608,68211.0,68204.0,0.073334]
[1730658872602,0.3608,68211.0,68205.0,0.17188561]
[1730658872603,0.047602,68210.0,68205.0,0.17188561]
[1730658872803,0.3608,68211.0,68205.0,0.17188561]
[1730658873207,0.3608,68211.0,68206.0,0.033]
[1730658873407,0.3608,68211.0,68206.0,0.106332]
[1730658874315,0.3608,68211.0,68206.0,0.033]
[1730658874707,0.3608,68211.0,68206.0,0.035]
[1730658875113,0.3608,68211.0,68210.0,0.09855261]
[1730658876412,0.3628,68211.0,68210.0,0.09855261]
[1730658876613,0.3638,68211.0,68210.0,0.09855261]
[1730658878320,0.3638,68211.0,68210.0,0.17188061]
[1730658880213,0.003,68211.0,68210.0,0.17188061]
[1730658893129,0.07333,68208.0,68206.0,0.01899522]
[1730658893325,0.073332,68206.0,68204.0,0.04395542]
[1730658893520,0.073332,68206.0,68205.0,0.073334]
[1730658894426,0.073328,68211.0,68207.0,0.073331]
[1730658894733,0.073328,68211.0,68210.0,0.09855261]
[1730658896428,0.074328,68211.0,68210.0,0.09855261]
[1730658896831,0.076328,68211.0,68210.0,0.09855261]
[1730658902127,0.076328,68211.0,68210.0,0.30302908]
[1730658902733,0.076328,68211.0,68210.0,0.1918373]
[1730658902935,0.076328,68211.0,68210.0,0.1918355]
[1730658903336,0.076328,68211.0,68210.0,0.15799809]
[1730658903535,0.076328,68211.0,68210.0,0.24600004]
[1730658904025,0.616048,68211.0,68210.0,0.04338289]
[1730658904225,0.616048,68211.0,68210.0,0.1167084]
[1730658904426,0.616048,68211.0,68209.0,0.07332551]
[1730658904627,0.4398,68210.0,68206.0,0.08800195]
[1730658904834,0.073331,68207.0,68206.0,0.15271715]
[1730658905136,0.073331,68207.0,68206.0,0.0647152]
[1730658906529,0.073331,68207.0,68206.0,0.0657152]
[1730658906729,0.073331,68207.0,68206.0,0.0687152]
[1730658910341,0.11271969,68207.0,68206.0,0.0687152]
[1730658912340,0.11285891,68207.0,68206.0,0.0687152]
[1730658913242,0.073331,68207.0,68206.0,0.0687152]
[1730658915145,0.073331,68207.0,68206.0,0.004]